[Event "Chinese League Div-A Rapid 2022"]
[Site "Fuling,Chongqing"]
[Date "2022.09.06"]
[Round "1.22"]
[White "Wan, Yunguo"]
[Black "Ma, Zhonghan"]
[Result "1/2-1/2"]
[ECO "C42"]
[WhiteElo "2508"]
[BlackElo "2485"]
[Annotator "TA"]
[PlyCount "50"]
[EventDate "2022.09.07"]
[EventType "team-tourn"]
[EventCountry "CHN"]
[SourceTitle "playchess.com"]
[Source "ChessBase"]
[SourceQuality "1"]
[TimeControl "1500+10"]

{[%evp 25,50,11,22,4,12,2,16,0,20,26,55,43,52,40,52,53,45,0,0,0,0,0,0,0,0,0,0]} 1. e4 {[%emt 0:00:04]} e5 {[%emt 0:00:01]} 2. Nf3 {[%emt 0:00:07]} Nf6 {[%emt 0:00:06]} 3. Nxe5 {[%emt 0:00:07]} d6 {[%emt 0:00:01]} 4. Nf3 {[%emt 0:00:04]} Nxe4 {[%emt 0:00:02]} 5. d4 {[%emt 0:00:27]} d5 {[%emt 0:00:04]} 6. Bd3 {[%emt 0:00:03]} Nc6 {[%emt 0:00:06]} 7. O-O {[%emt 0:00:04]} Be7 {[%emt 0:00:03]} 8. c4 {[%emt 0:00:07]} Nb4 {[%emt 0:00:10]} 9. Be2 {[%emt 0:00:13]} O-O {[%emt 0:00:08]} 10. Nc3 {[%emt 0:00:09]} Bf5 {[%emt 0:00:32]} 11. a3 {[%emt 0:00:04]} Nxc3 {[%emt 0:00:06]} 12. bxc3 {[%emt 0:00:03]} Nc6 {[%emt 0:00:03]} 13. Re1 {[%emt 0:00:12]} Re8 {[%emt 0:00:28]} 14. cxd5 {[%emt 0:00:10] C42: Petroff Defence: 3 Nxe5 and unusual White 3rd moves.} Qxd5 {[%emt 0:00:03]} 15. Bf4 {[%emt 0:00:26]} Rac8 {[%emt 0:00:19]} 16. h3 {[%emt 0:00:00] [#]} Bg6 $146 {[%emt 0:07:52]} ({Predecessor:} 16... h6 17. Nd2 Na5 18. Bf3 Qd7 19. Ne4 Bf8 20. Ra2 Kh8 21. Rae2 b6 22. Ng3 Rxe2 23. Qxe2 {½-½ (53) Karjakin,S (2776)-Wang,Y (2705) Beijing 2013}) 17. Qa4 {[%emt 0:05:08]} Qf5 {[%emt 0:03:43]} 18. Bg3 {[%emt 0:00:36]} Bd6 {[%emt 0:00:45]} 19. Bb5 {[%emt 0:00:36]} Bxg3 $1 {[%emt 0:01:01]} 20. fxg3 {[%emt 0:00:03]} Qd5 $1 {[%emt 0:01:18]} 21. Ne5 {[%emt 0:01:49]} Nxe5 {[%emt 0:01:09] The position is equal.} 22. Bxe8 {[%emt 0:00:34]} Nf3+ {[%emt 0:00:11]} 23. gxf3 {[%emt 0:02:06]} Qxf3 {[%emt 0:00:02]} 24. Qd7 {[%emt 0:05:08] [#] Threatens to win with Bxf7+.} ({Not} 24. Qxa7 $2 Qxg3+ 25. Kh1 Bh5 26. Bxf7+ Kxf7 27. Rf1+ Bf3+ 28. Rxf3+ Qxf3+ 29. Kg1 Qg3+ 30. Kh1 Qxh3+ 31. Kg1 Qg3+ 32. Kh1 Qf3+ 33. Kg1 Qg4+ 34. Kh2 Qe2+ 35. Kg1 Qg4+ 36. Kh2 Qe2+ 37. Kg1 Qg4+ $19) 24... Qxg3+ {[%emt 0:00:02]} 25. Kh1 {[%emt 0:00:02] Intending Bxf7+ and mate.} Qf3+ {[%emt 0:00:08] Weighted Error Value: White=0.09 (flawless) /Black=0.05 (flawless)} 1/2-1/2

[Event "Chinese League Div-A Rapid 2022"]
[Site "Fuling,Chongqing"]
[Date "2022.09.06"]
[Round "1.23"]
[White "Zhang, Pengxiang"]
[Black "Wang, Hao B"]
[Result "0-1"]
[ECO "B90"]
[WhiteElo "2564"]
[BlackElo "2165"]
[Annotator "TA"]
[PlyCount "66"]
[EventDate "2022.09.07"]
[EventType "team-tourn"]
[EventCountry "CHN"]
[SourceTitle "playchess.com"]
[Source "ChessBase"]
[SourceQuality "1"]
[TimeControl "1500+10"]

{[%evp 11,66,27,37,17,20,-7,4,-8,2,-16,37,33,18,17,60,57,110,124,153,54,58,64,59,-14,-20,-63,-51,-33,0,0,0,0,0,0,0,0,0,-8,61,54,57,61,66,56,66,57,58,3,4,-6187,-6170,-5908,-5810,-5410,-5318,-4902,-4798]} 1. e4 {[%emt 0:00:03]} c5 {[%emt 0:00:02]} 2. Nf3 {[%emt 0:00:01]} d6 {[%emt 0:00:03]} 3. d4 {[%emt 0:00:00]} cxd4 {[%emt 0:00:03]} 4. Nxd4 {[%emt 0:00:01]} Nf6 {[%emt 0:00:03]} 5. Nc3 {[%emt 0:00:01]} a6 {[%emt 0:00:02]} 6. h3 {[%emt 0:00:01]} Nc6 {[%emt 0:00:04]} 7. Bc4 {[%emt 0:01:47] B90: Sicilian Najdorf: Unusual White 6th moves, 6 Be3 Ng4 and 6 Be3 e5.} e6 {[%emt 0:02:12]} 8. Bb3 {[%emt 0:00:16]} Be7 {[%emt 0:00:08]} 9. Be3 {[%emt 0:00:01] The position is equal.} O-O {[%emt 0:00:05]} 10. g4 {[%emt 0:02:02][%cal Bg2g4,Bg4g5][%mdl 32] [#]} Bd7 $146 {[%emt 0:00:37]} (10... Nxd4 $11 11. Qxd4 Nd7) ({Predecessor:} 10... d5 11. exd5 Nxd5 12. Nxd5 exd5 13. Nxc6 bxc6 14. Qd2 a5 15. Ba4 Qc7 16. O-O-O Rd8 {0-1 (49) Chandler,P (2232)-Hirneise,J (2280) Germany 2013}) 11. g5 $14 {[%emt 0:00:18]} Ne8 {[%emt 0:00:17]} 12. h4 {[%emt 0:00:01]} Nxd4 {[%emt 0:00:19]} 13. Qxd4 {[%emt 0:00:13]} Bc6 {[%emt 0:00:21]} (13... b5 $14) 14. f4 {[%emt 0:00:21]} e5 {[%emt 0:01:00]} 15. fxe5 {[%emt 0:01:06]} ({White should try} 15. Qd2 $16) 15... dxe5 {[%emt 0:00:02]} 16. Qxe5 {[%emt 0:00:05]} Bd6 $1 {[%emt 0:00:05]} 17. Qf5 {[%emt 0:00:01]} ({Better is} 17. Qd4 $14) 17... Bg3+ $11 {[%emt 0:00:05]} 18. Bf2 {[%emt 0:03:02]} Nd6 {[%emt 0:00:05] Chess con chili.} 19. Qg4 {[%emt 0:00:22] [#]} Nxe4 {[%emt 0:00:47]} 20. Nxe4 {[%emt 0:00:37]} Bxe4 {[%emt 0:00:04]} 21. O-O {[%emt 0:00:34]} ({Don't blunder} 21. Qxe4 $2 Re8 22. Bxf7+ Kxf7 $19) 21... Bxf2+ {[%emt 0:05:54]} 22. Rxf2 {[%emt 0:00:01]} Bc6 {[%emt 0:01:02]} (22... Qd4 $2 23. Re1 Rae8 24. c3 $18) 23. Raf1 {[%emt 0:00:17]} Qb6 {[%emt 0:00:04]} 24. Kh2 {[%emt 0:00:55] [#]} Rad8 {[%emt 0:01:30]} (24... Bd5 $1 $11) 25. Rxf7 {[%emt 0:06:53]} Rxf7 {[%emt 0:00:04]} 26. Rxf7 $40 {[%emt 0:00:18][%cal Of7f8][%mdl 128] Threatening mate with Rf8+! White attacks.} Bd5 $1 {[%emt 0:01:41]} 27. Bxd5 {[%emt 0:03:16][%cal Og4f4] White threatens Qf4! and mate.} Qd6+ {[%emt 0:00:02]} 28. Qf4 {[%emt 0:03:08][%csl Gf4][%cal Rf7f8]} Qxd5 {[%emt 0:01:27]} 29. Rc7 {[%emt 0:00:01]} (29. Re7 $14) 29... b5 {[%emt 0:01:55] Strongly threatening ...Re8.} 30. c4 $2 {[%emt 0:01:07][%mdl 8192] [#] White does not recover from this.} (30. Re7 $11) 30... Qe6 $1 $19 {[%emt 0:00:20] Black is clearly winning.} 31. Kg3 {[%emt 0:02:08]} Qe1+ {[%emt 0:01:00]} 32. Kg4 {[%emt 0:01:03]} Qe2+ {[%emt 0:00:05]} 33. Qf3 {[%emt 0:00:29]} Rd4+ {[%emt 0:00:07] Weighted Error Value: White=0.52/Black=0.13 (very precise)} 0-1

[Event "Chinese League Div-A Rapid 2022"]
[Site "Fuling,Chongqing"]
[Date "2022.09.06"]
[Round "1.24"]
[White "Shao, Qiyu"]
[Black "Zhang, Lanlin"]
[Result "0-1"]
[ECO "D34"]
[WhiteElo "1467"]
[BlackElo "2135"]
[Annotator "RC"]
[PlyCount "124"]
[EventDate "2022.09.07"]
[EventType "team-tourn"]
[EventCountry "CHN"]
[SourceTitle "playchess.com"]
[Source "ChessBase"]
[SourceQuality "1"]
[TimeControl "1500+10"]

1. c4 {[%emt 0:00:04]} Nf6 {[%emt 0:00:02]} 2. g3 {[%emt 0:00:10]} e6 {[%emt 0:00:07]} 3. Bg2 {[%emt 0:00:34]} d5 {[%emt 0:00:02]} 4. Nf3 {[%emt 0:00:16]} Be7 {[%emt 0:00:25]} 5. O-O {[%emt 0:00:15]} c5 {[%emt 0:02:16]} 6. cxd5 {[%emt 0:00:16]} exd5 {[%emt 0:00:08]} 7. d4 {[%emt 0:00:03]} cxd4 {[%emt 0:00:55]} 8. Nxd4 {[%emt 0:00:03]} O-O {[%emt 0:00:16]} 9. Nc3 {[%emt 0:00:02]} Nc6 {[%emt 0:00:38]} 10. Bg5 {[%emt 0:01:21]} h6 {[%emt 0:00:07]} 11. Bf4 {[%emt 0:00:56]} Qb6 {[%emt 0:01:47]} 12. Nb3 {[%emt 0:02:16]} Be6 {[%emt 0:06:43]} 13. Be3 {[%emt 0:01:51]} Qd8 {[%emt 0:00:20]} 14. Rc1 {[%emt 0:01:32]} Rc8 {[%emt 0:01:22]} 15. Qd2 {[%emt 0:02:08]} Ne5 {[%emt 0:02:57]} 16. Nxd5 {[%emt 0:04:28]} Bxd5 {[%emt 0:00:09]} 17. Rxc8 {[%emt 0:00:02]} Qxc8 {[%emt 0:00:01]} 18. Bxd5 {[%emt 0:00:03]} Rd8 {[%emt 0:00:01]} 19. Bxf7+ {[%emt 0:01:55]} Nxf7 {[%emt 0:00:38]} 20. Qa5 {[%emt 0:00:09]} a6 {[%emt 0:01:27]} 21. Rc1 {[%emt 0:00:04]} Qh3 {[%emt 0:00:17]} 22. f3 {[%emt 0:01:59]} Qe6 {[%emt 0:00:26]} 23. Kf2 {[%emt 0:04:01]} Ne5 {[%emt 0:00:40]} 24. Bd4 {[%emt 0:01:18]} Nc6 {[%emt 0:00:14]} 25. Qc3 {[%emt 0:00:43]} Nxd4 {[%emt 0:01:39]} 26. Nxd4 {[%emt 0:00:03]} Qb6 {[%emt 0:00:02]} 27. e3 {[%emt 0:00:26]} Nd5 {[%emt 0:00:30]} 28. Qc4 {[%emt 0:00:54]} Qxb2+ {[%emt 0:00:15]} 29. Rc2 {[%emt 0:01:04]} Qb4 {[%emt 0:00:09]} 30. Qxb4 {[%emt 0:00:17]} Nxb4 {[%emt 0:00:42]} 31. Rc7 {[%emt 0:00:02]} Bf6 {[%emt 0:00:07]} 32. Rxb7 {[%emt 0:00:22]} Bxd4 {[%emt 0:00:21]} 33. Rxb4 {[%emt 0:00:08]} Bf6 {[%emt 0:00:56]} 34. Ra4 {[%emt 0:00:37]} Rd6 {[%emt 0:00:59]} 35. g4 {[%emt 0:00:12]} Bc3 {[%emt 0:00:05]} 36. Rc4 {[%emt 0:00:17]} Ba5 {[%emt 0:00:21]} 37. Kg3 {[%emt 0:00:11]} Rd2 {[%emt 0:00:10]} 38. Ra4 {[%emt 0:00:01]} Bc7+ {[%emt 0:00:02]} 39. f4 {[%emt 0:00:02]} a5 {[%emt 0:00:02]} 40. h4 {[%emt 0:00:09]} Rd3 {[%emt 0:00:05]} 41. Kf3 {[%emt 0:00:17]} Bb6 {[%emt 0:00:01]} 42. Ke4 {[%emt 0:00:22]} Rxe3+ {[%emt 0:00:03]} 43. Kf5 {[%emt 0:00:01]} Kf7 {[%emt 0:00:08]} 44. h5 {[%emt 0:00:09]} Rc3 {[%emt 0:00:41]} 45. g5 {[%emt 0:00:20]} hxg5 {[%emt 0:00:19]} 46. fxg5 {[%emt 0:00:03]} Rc5+ {[%emt 0:00:01]} 47. Kg4 {[%emt 0:00:03]} Bd8 {[%emt 0:00:01]} 48. g6+ {[%emt 0:00:03]} Kf8 {[%emt 0:00:38]} 49. Rf4+ {[%emt 0:00:04]} Bf6 {[%emt 0:00:20]} 50. h6 {[%emt 0:00:08]} Rg5+ {[%emt 0:00:02]} 51. Kf3 {[%emt 0:00:11]} Rxg6 {[%emt 0:00:01]} 52. hxg7+ {[%emt 0:00:10]} Kxg7 {[%emt 0:00:06]} 53. Rc4 {[%emt 0:00:04]} Bd8 {[%emt 0:00:11]} 54. Rd4 {[%emt 0:00:06]} Bb6 {[%emt 0:00:07]} 55. Rd7+ {[%emt 0:00:03]} Kf6 {[%emt 0:00:27]} 56. Kf4 {[%emt 0:00:03]} Ke6 {[%emt 0:00:07]} 57. Rd1 {[%emt 0:00:20]} Rg2 {[%emt 0:00:02]} 58. a3 {[%emt 0:00:51]} Ra2 {[%emt 0:00:04]} 59. Rc1 {[%emt 0:00:09]} Kd5 {[%emt 0:00:08]} 60. Rd1+ {[%emt 0:00:17]} Bd4 {[%emt 0:00:02]} 61. Rd3 {[%emt 0:00:01]} Kc4 {[%emt 0:00:01]} 62. Ke4 {[%emt 0:00:02]} Re2+ {[%emt 0:00:02]} 0-1

[Event "Chinese League Div-A Rapid 2022"]
[Site "Fuling,Chongqing"]
[Date "2022.09.06"]
[Round "1.25"]
[White "Sun, Fanghui"]
[Black "Zhang, Xiaowen"]
[Result "1/2-1/2"]
[ECO "C14"]
[WhiteElo "2182"]
[BlackElo "2307"]
[Annotator "TA"]
[PlyCount "74"]
[EventDate "2022.09.07"]
[EventType "team-tourn"]
[EventCountry "CHN"]
[SourceTitle "playchess.com"]
[Source "ChessBase"]
[SourceQuality "1"]
[TimeControl "1500+10"]

{[%evp 22,74,-25,-22,-29,-30,-44,-33,0,-31,-30,-51,-50,-21,0,0,-17,-7,0,-8,0,0,85,108,206,-85,-100,-84,-53,-54,0,-265,0,0,0,0,0,0,0,0,0,0,0,0,0,0,0,0,0,0,0,0,0,0,0]} 1. e4 {[%emt 0:00:03][%cal Be2e4,Be4e5][%mdl 32]} e6 {[%emt 0:00:01]} 2. d4 {[%emt 0:00:02]} d5 {[%emt 0:00:02]} 3. Nc3 {[%emt 0:00:02]} Nf6 {[%emt 0:00:03]} 4. Bg5 {[%emt 0:00:03]} Be7 {[%emt 0:02:50]} 5. e5 {[%emt 0:00:04]} Nfd7 {[%emt 0:00:02]} 6. Bxe7 {[%emt 0:00:22]} Qxe7 {[%emt 0:00:06]} 7. f4 {[%emt 0:00:03]} a6 {[%emt 0:00:01]} 8. Nf3 {[%emt 0:00:05]} c5 {[%emt 0:00:02]} 9. Qd2 {[%emt 0:00:05]} Nc6 {[%emt 0:00:01]} 10. dxc5 {[%emt 0:00:03]} Nxc5 {[%emt 0:00:27]} 11. O-O-O {[%emt 0:00:04]} b5 {[%emt 0:01:22]} 12. Bd3 {[%emt 0:00:10]} b4 {[%emt 0:00:53] C14: French: Classical System: 4 Bg5 Be7 main line.} 13. Ne2 {[%emt 0:00:06]} a5 {[%emt 0:00:03]} 14. Kb1 {[%emt 0:03:32]} O-O {[%emt 0:01:04] Black is slightly better.} 15. Ned4 {[%emt 0:03:18]} (15. Qe3 $5 {[%cal Rd3h7]} Nxd3 16. cxd3 $11) 15... Nxd4 {[%emt 0:01:03]} 16. Nxd4 {[%emt 0:00:03]} Ba6 {[%emt 0:01:26]} 17. Rhe1 {[%emt 0:07:10]} f5 {[%emt 0:04:40] [#]} 18. g4 $146 {[%emt 0:05:50][%cal Rg4f5]} ({Predecessor:} 18. exf6 Qxf6 19. Bxa6 Rxa6 20. g3 Rb8 21. f5 exf5 22. Qf4 Rf8 23. Re5 g6 24. Rxd5 {1-0 (34) Nagy,B (2391)-Fur,K (1947) Balatonalmadi 2010}) 18... fxg4 {[%emt 0:00:45]} 19. Rg1 {[%emt 0:00:07]} a4 {[%emt 0:06:07]} 20. Rxg4 {[%emt 0:00:27] Hoping for Rdg1.} b3 {[%emt 0:00:32]} 21. Rdg1 {[%emt 0:00:20]} bxa2+ {[%emt 0:00:37]} (21... Bxd3 $11 22. Rxg7+ Qxg7 23. Rxg7+ Kxg7 24. cxd3 Kh8) 22. Kxa2 $16 {[%emt 0:00:19]} Rf7 {[%emt 0:00:09] [#]} (22... Bxd3 $16 23. Rxg7+ Qxg7 24. Rxg7+ Kxg7) 23. Qe3 $2 {[%emt 0:03:52]} (23. f5 $1 $18 {[%cal Rf5f6] Threatens to win with f6.} Bxd3 24. f6 (24. cxd3 Nb3 $11) 24... Bc4+ 25. Kb1) 23... Bxd3 $17 {[%emt 0:00:59]} 24. cxd3 {[%emt 0:00:02][%cal Of4f5]} Nb3 {[%emt 0:00:16][%cal Oa4a3] And now ...a3! would win.} 25. Nb5 {[%emt 0:01:22] Prevents a3.} Qb4 {[%emt 0:02:18]} ({Better is} 25... g6 $15) 26. Na3 $2 {[%emt 0:00:06][%mdl 8192]} (26. f5 $1 $11 {and White stays safe.} Qxb5 27. Qh6) 26... Rb8 $2 {[%emt 0:00:51]} (26... Nd4 $19 {aiming for ...Rc8.} 27. Rc1 Nf5) 27. f5 $1 $11 {[%emt 0:00:17] The position is equal.} d4 {[%emt 0:00:18]} 28. Qh6 {[%emt 0:01:09][%cal Rg4g7] Dancing on a razor blade.} Kh8 {[%emt 0:02:21]} (28... Nc1+ $2 29. Qxc1 exf5 30. R4g2 $18) 29. Rxg7 {[%emt 0:00:35][%csl Gg7][%cal Rh6h7]} Nc1+ $1 {[%emt 0:00:01][%mdl 64] [#] Discovered Attack} 30. Qxc1 {[%emt 0:00:01]} Rxg7 {[%emt 0:00:01]} 31. Rxg7 {[%emt 0:00:04] Intending f6 and mate.} Qb3+ {[%emt 0:00:11]} 32. Ka1 {[%emt 0:00:03] White wants to mate with f6.} Kxg7 {[%emt 0:00:01]} 33. Qg5+ {[%emt 0:00:14]} Kh8 {[%emt 0:00:03][%csl Gb8][%cal Rb3b2]} 34. Qf6+ {[%emt 0:00:02]} Kg8 {[%emt 0:00:01][%csl Gb8][%cal Rb3b2]} 35. Qg5+ {[%emt 0:00:08]} Kh8 {[%emt 0:00:31][%csl Gb8][%cal Rb3b2]} 36. Qf6+ {[%emt 0:00:01]} Kg8 {[%emt 0:00:01][%csl Gb8][%cal Rb3b2]} 37. Qg5+ {[%emt 0:00:01]} Kh8 {[%emt 0:00:37] Weighted Error Value: White=0.34/Black=0.27 (precise)} 1/2-1/2

[Event "Chinese League Div-A Rapid 2022"]
[Site "Fuling,Chongqing"]
[Date "2022.09.06"]
[Round "1.26"]
[White "Bai, Jinshi"]
[Black "Bu, Xiangzhi"]
[Result "1/2-1/2"]
[ECO "D38"]
[WhiteElo "2586"]
[BlackElo "2709"]
[Annotator "TA"]
[PlyCount "78"]
[EventDate "2022.09.07"]
[EventType "team-tourn"]
[EventCountry "CHN"]
[SourceTitle "playchess.com"]
[Source "ChessBase"]
[SourceQuality "1"]
[TimeControl "1500+10"]

{[%evp 16,78,15,12,12,5,19,25,16,8,9,14,8,6,5,0,0,4,7,-10,0,0,0,0,0,-1343,-403,-689,0,0,0,-10,-7,-10,-6,-11,-11,-11,-3,-3,-3,-3,-3,-4,-2,-5,0,0,-2,-2,-3,-13,-13,-34,-34,-34,0,0,0,0,0,0,0,0,0]} 1. d4 {[%emt 0:00:03]} Nf6 {[%emt 0:00:01]} 2. c4 {[%emt 0:00:04]} e6 {[%emt 0:00:02]} 3. Nf3 {[%emt 0:00:08]} d5 {[%emt 0:00:03]} 4. Nc3 {[%emt 0:00:03]} Bb4 {[%emt 0:00:08]} 5. Bg5 {[%emt 0:00:09]} h6 {[%emt 0:00:09]} 6. Bxf6 {[%emt 0:00:07]} Qxf6 {[%emt 0:00:02]} 7. e3 {[%emt 0:00:11]} O-O {[%emt 0:00:04]} 8. Rc1 {[%emt 0:00:04]} dxc4 {[%emt 0:00:19]} 9. Bxc4 {[%emt 0:00:04]} c5 {[%emt 0:00:02] D38: Queen's Gambit Declined: Ragozin Defence (4 Nf3 Bb4).} 10. Qb3 {[%emt 0:00:49]} Nc6 {[%emt 0:01:33]} 11. dxc5 $1 {[%emt 0:00:16]} Qe7 {[%emt 0:00:21] White has an edge.} 12. O-O {[%emt 0:00:07]} Bxc5 {[%emt 0:00:03]} 13. Rfd1 {[%emt 0:00:03]} Rd8 {[%emt 0:01:24]} 14. Rxd8+ {[%emt 0:01:26]} Qxd8 {[%emt 0:00:03] [#]} 15. Rd1 $146 {[%emt 0:01:02]} ({Predecessor:} 15. Be2 Be7 16. Rd1 Qc7 17. Nb5 Qb6 18. Nd2 Na5 19. Nc4 Nxb3 20. Nxb6 axb6 21. axb3 Ra2 22. Nd6 {½-½ (22) Kogan,B (2289)-Grebenshchikov,A (2321) ICCF email 2015}) 15... Qc7 {[%emt 0:00:12]} 16. Nb5 {[%emt 0:01:28]} Qe7 {[%emt 0:00:54]} 17. Qd3 {[%emt 0:03:51]} a6 {[%emt 0:00:21]} 18. Nd6 {[%emt 0:00:32]} Bxd6 {[%emt 0:00:08]} 19. Qxd6 {[%emt 0:00:02]} Qxd6 {[%emt 0:00:01]} 20. Rd2 {[%emt 0:00:03][%mdl 8192] [#]} (20. Rxd6 $11 Kf8 21. h3) 20... Qd5 21. Rxd5 {[%emt 0:00:10]} (21. Bxd5 $142 exd5 22. Kf1) 21... Kf8 $2 {[%emt 0:00:11]} (21... exd5 $19 22. Bxd5 Nb4) 22. Rd2 $11 {[%emt 0:01:05]} Ke7 {[%emt 0:00:01]} 23. Nd4 {[%emt 0:01:59]} Nxd4 {[%emt 0:00:27]} 24. Rxd4 {[%emt 0:00:07][%mdl 4096] Endgame KRB-KRB} Bd7 {[%emt 0:00:13]} 25. Be2 {[%emt 0:02:52]} Rc8 {[%emt 0:00:38]} 26. Rc4 {[%emt 0:00:03] Against Rc2} Bc6 {[%emt 0:00:02]} 27. f3 {[%emt 0:00:22]} Rd8 {[%emt 0:00:20] [#] ...Rd2 is the strong threat.} 28. Rc2 {[%emt 0:00:15] Prevents Rd2.} Rd6 {[%emt 0:00:06]} 29. Kf2 {[%emt 0:00:03]} f5 {[%emt 0:00:10]} 30. Ke1 {[%emt 0:00:47]} Kd7 {[%emt 0:01:53]} 31. h4 {[%emt 0:00:28]} g5 {[%emt 0:00:44]} 32. hxg5 {[%emt 0:01:26]} hxg5 {[%emt 0:00:02]} 33. g4 {[%emt 0:00:44]} Ke7 {[%emt 0:00:20]} 34. Rd2 {[%emt 0:02:27]} Rxd2 {[%emt 0:00:02]} 35. Kxd2 {[%emt 0:00:01]} Kf6 {[%emt 0:00:01]} 36. f4 {[%emt 0:00:07] The position is equal.} gxf4 {[%emt 0:03:07]} 37. exf4 {[%emt 0:00:03]} fxg4 {[%emt 0:00:01]} 38. Bxg4 {[%emt 0:00:01]} e5 {[%emt 0:00:01]} 39. fxe5+ {[%emt 0:00:02]} Kxe5 {[%emt 0:00:01] Weighted Error Value: White=0.41/Black=0.36} 1/2-1/2

[Event "Chinese League Div-A Rapid 2022"]
[Site "Fuling,Chongqing"]
[Date "2022.09.06"]
[Round "1.27"]
[White "Ma, Qun"]
[Black "Zeng, Chongsheng"]
[Result "1/2-1/2"]
[ECO "D38"]
[WhiteElo "2666"]
[BlackElo "2597"]
[Annotator "TA"]
[PlyCount "40"]
[EventDate "2022.09.07"]
[EventType "team-tourn"]
[EventCountry "CHN"]
[SourceTitle "playchess.com"]
[Source "ChessBase"]
[SourceQuality "1"]
[TimeControl "1500+10"]

{[%evp 14,40,18,18,39,19,16,10,22,0,27,10,22,-10,-16,-14,-16,-17,-23,-23,-24,-29,-30,-22,-22,-32,-10,-35,-32]} 1. d4 {[%emt 0:00:05]} Nf6 {[%emt 0:00:02]} 2. c4 {[%emt 0:00:03]} e6 {[%emt 0:00:01]} 3. Nf3 {[%emt 0:00:03]} d5 {[%emt 0:00:02]} 4. Nc3 {[%emt 0:00:05]} Bb4 {[%emt 0:00:03]} 5. Bg5 {[%emt 0:00:51]} h6 {[%emt 0:00:01]} 6. Bxf6 {[%emt 0:00:13]} Qxf6 {[%emt 0:00:03]} 7. Qa4+ {[%emt 0:00:05]} Nc6 {[%emt 0:00:02]} 8. e3 {[%emt 0:00:03]} O-O {[%emt 0:00:07] D38: Queen's Gambit Declined: Ragozin Defence (4 Nf3 Bb4).} 9. Rc1 {[%emt 0:00:10]} Rd8 {[%emt 0:00:10]} 10. Be2 {[%emt 0:00:04]} dxc4 {[%emt 0:00:08] The position is equal.} 11. Qb5 {[%emt 0:00:07] [#]} e5 $146 {[%emt 0:00:19]} ({Predecessor:} 11... Qe7 12. Bxc4 Na5 13. a3 Bd7 14. Qxb4 Qxb4 15. axb4 Nxc4 16. b3 Nd6 17. Ne5 a5 18. bxa5 Rxa5 {0-1 (35) Mamedyarov,S (2782)-Aronian,L (2782) chess24.com INT 2021}) 12. dxe5 {[%emt 0:08:23]} ({Not} 12. Nxe5 a6 13. Qxc4 Be6 $17) 12... Bxc3+ {[%emt 0:00:46]} 13. bxc3 {[%emt 0:04:45]} (13. Rxc3 $5 {[%cal Re5f6]} Qg6 14. O-O $11) 13... Qe7 {[%emt 0:03:51]} 14. O-O {[%emt 0:01:02]} a6 {[%emt 0:02:48]} 15. Qxc4 {[%emt 0:00:05]} Nxe5 {[%emt 0:00:09]} 16. Qe4 {[%emt 0:04:37]} Nxf3+ {[%emt 0:04:19]} 17. Bxf3 {[%emt 0:00:02]} Qxe4 {[%emt 0:00:12]} 18. Bxe4 {[%emt 0:00:03]} Kf8 {[%emt 0:00:12]} 19. Rfd1 {[%emt 0:00:47]} Rxd1+ {[%emt 0:00:15]} 20. Rxd1 {[%emt 0:00:01]} Ke7 {[%emt 0:00:00] Against Rd8.  Weighted Error Value: White=0.07 (flawless) /Black=0.06 (flawless)} 1/2-1/2

[Event "Chinese League Div-A Rapid 2022"]
[Site "Fuling,Chongqing"]
[Date "2022.09.06"]
[Round "1.28"]
[White "Xu, Zhihang"]
[Black "Liu, Yan"]
[Result "1/2-1/2"]
[ECO "E06"]
[WhiteElo "2489"]
[BlackElo "2530"]
[Annotator "TA"]
[PlyCount "66"]
[EventDate "2022.09.07"]
[EventType "team-tourn"]
[EventCountry "CHN"]
[SourceTitle "playchess.com"]
[Source "ChessBase"]
[SourceQuality "1"]
[TimeControl "1500+10"]

{[%evp 16,66,18,19,10,13,12,29,37,0,0,4,0,0,16,0,0,0,7,0,0,0,0,0,0,0,0,-6,0,0,0,0,15,8,8,17,20,0,0,0,0,0,0,-959,-6,-663,-9,-9,7,0,0,0,0]} 1. d4 {[%emt 0:00:03]} Nf6 {[%emt 0:00:03]} 2. c4 {[%emt 0:00:04]} e6 {[%emt 0:00:08]} 3. Nf3 {[%emt 0:00:06]} b6 {[%emt 0:00:06]} 4. g3 {[%emt 0:00:06]} Bb4+ {[%emt 0:00:03]} 5. Bd2 {[%emt 0:00:03]} Be7 {[%emt 0:00:06]} 6. Bg2 {[%emt 0:00:30]} c6 {[%emt 0:00:15]} 7. Nc3 {[%emt 0:00:08]} d5 {[%emt 0:02:20]} 8. Bf4 {[%emt 0:00:34]} O-O {[%emt 0:00:27]} 9. O-O {[%emt 0:00:06]} Bb7 {[%emt 0:03:28] E06: Closed Catalan: Early deviations.} 10. Ne5 {[%emt 0:00:18]} dxc4 {[%emt 0:04:22]} 11. Nxc4 {[%emt 0:00:25]} Nd5 {[%emt 0:00:07] White has an edge.} 12. Rc1 {[%emt 0:00:13]} Nxf4 {[%emt 0:01:00]} 13. gxf4 {[%emt 0:00:03]} Nd7 {[%emt 0:00:08]} 14. e3 {[%emt 0:00:18]} Qc7 {[%emt 0:00:47]} 15. Qb3 {[%emt 0:00:29]} (15. Qh5 {seems wilder.} Ba6 16. Ne4 Nf6 17. Nxf6+ Bxf6 18. Rfd1) 15... Rac8 {[%emt 0:03:21]} 16. a4 {[%emt 0:00:28]} Qb8 {[%emt 0:01:08]} 17. Rfd1 {[%emt 0:00:10]} Rfd8 {[%emt 0:00:20] [#]} 18. Qc2 $146 {[%emt 0:01:45]} ({Predecessor:} 18. a5 Bf8 19. axb6 axb6 20. Nxb6 Ba6 21. Ra1 Bc4 22. Qxc4 Nxb6 23. Qe2 c5 24. dxc5 Bxc5 {½-½ (56) Batsiashvili,N (2425)-Swati,G (2242) Chennai 2013}) 18... Nf6 {[%emt 0:01:27]} 19. Ne5 {[%emt 0:02:13]} c5 {[%emt 0:00:44]} 20. dxc5 {[%emt 0:00:31]} Bxg2 {[%emt 0:00:05]} 21. Kxg2 {[%emt 0:00:03]} Bxc5 {[%emt 0:01:00]} 22. Rxd8+ {[%emt 0:00:54]} Rxd8 {[%emt 0:00:02]} 23. Qe2 {[%emt 0:00:15]} Qb7+ {[%emt 0:02:21]} 24. Qf3 {[%emt 0:00:06]} Qxf3+ {[%emt 0:00:02]} 25. Kxf3 {[%emt 0:00:02]} a6 {[%emt 0:00:53]} 26. b4 {[%emt 0:01:57]} Bxb4 {[%emt 0:01:14]} 27. Nc6 {[%emt 0:00:15][%csl LRb4,LRd8]} Ba3 {[%emt 0:00:03]} 28. Rb1 $1 {[%emt 0:00:14]} Rd3 {[%emt 0:00:47]} 29. Rb4 $2 {[%mdl 8192] [#]} b5 $2 (29... Bxb4 $19 30. Ne2 Bc5) 30. Rxb5 $2 {[%mdl 8192]} Nd7 $2 (30... axb5 $19 31. Nxb5 Bc5) 31. Rb3 $11 {The position is equal.} Bf8 32. Ke2 Nc5 33. Rb8 {[#] White threatens Ne7+ and mate.} f5 {[%emt 0:00:50] Weighted Error Value: White=0.58/Black=0.54} 1/2-1/2